{"text_format":"1","workbook":"xlsx","n_sheets":1,"sheets":["Price Bid"],"not_rendered":{"charts":0,"images":1,"macros":1,"external_links":1,"defined_names":1,"comments":0,"pivot_tables":0},"unopened":[],"bounds":{"document_bytes":16777216,"sheet_cells":100000,"rows_first":2000,"rows_last":500,"rows_between":2000,"halvings":0,"cell_chars":16384,"cell_head_chars":4096},"cells_cut":0,"cells_raw":0,"read":"whole","date_system":"1900"}

{"sheet":"Price Bid","index":0,"n_rows":35,"n_cols":9,"rows_kept":35,"cut":false,"hidden":false,"merged":[[29,0,29,8],[30,0,30,8],[4,0,4,1],[24,0,24,1],[25,0,25,1],[26,0,26,1],[26,2,26,8],[0,0,0,8],[1,0,1,8],[2,0,2,8],[3,0,3,8],[28,0,28,9]]}
["BHARAT HEAVY ELECTRICALS LIMITED , JHANSI              "]
["FACTORY CIVIL DEPARTMENT "]
["Price bid "]
["Name of Work: Miscellaneous sanitation and cleaning activities in BHEL Jhansi."]
["Tender Enquiry No- FCX/TW/24/22"]
["Sl. No.","Description of work ","% Allocation (Item-wise)","Unit "," Qty","Rate ","Amount (Rs)","Rate per Unit (in Rs.)","Amount (in Rs.)"]
[1,"Clearing jungle including cutting of rank vegetation, grass, brush wood, trees and saplings of girth up to 30 cm measured at a height of 1 m above ground level and removal of rubbish up to a distance of 50 m outside the periphery of the area cleared. The clearing of area may be carried out manually or using any mechanical equipments like JCB, Tractor mounted loader etc. ",{"$f":"G7/1129758.73","v":0.18942540058973478},"Sqm ",{"$f":"'[1]calculation sheet '!F15","v":25940},8.25,{"$f":"E7*F7","v":214005},{"$f":"ROUND(I7/E7,4)","v":0},{"$f":"$I$26*C7","v":0}]
[2,"Clearing of unwanted vegetation from solar plant area and removing of grasses from below the solar panels  and other area in factory   by labours using  manual tools and disposal of waste material in suitable bin as per instruction of Engineer-in-charge. The work is to be carried out ensuring that panels and other electrical establishments are not damaged/disturbed while cleaning and cutting process. (All tools & plants provided by Contractor)",{"$f":"G8/1129758.73","v":0.22093212769420245},"Sqm ",{"$f":"'[1]calculation sheet '!F24","v":83200},3,{"$f":"E8*F8","v":249600},{"$f":"ROUND(I8/E8,4)","v":0},{"$f":"$I$26*C8","v":0}]
[3,"Cleaning of road side drains by removing grass, soil,   etc.   and removal of rubbish up to a distance of 50 m outside the periphery of the area cleared. The clearing of area may be carried out manually or mechanically.",1.7294400548690605E-2,"Mtr",{"$f":"'[1]calculation sheet '!F41","v":1699},11.5,19538.5,0,0]
[4,"Felling trees of the girth above 30 cm (measured at a height of 1 m above ground level), including cutting of trunks and branches, and stacking of serviceable material and disposal  of waste material in suitable bin as per instruction of  Engineer-in-charge. (All tools & plants provided by Contractor)",8.8514474236459327E-3,"Each ",{"$f":"'[1]calculation sheet '!F45","v":10},{"$f":"'[1]CST '!I11","v":1000},10000,0,0]
[null,"Total ",{"$f":"SUM(C7:C10)","v":0.43650337625627372},null,null,"Total (A)",{"$f":"SUM(G7:G10)","v":493143.5},null,{"$f":"SUM(I7:I10)","v":0}]
[]
[5,"Trimming of trees under around of over head H T and LT lines and dispose of waste material in suitable bin as per instruction of  Engineer-in-charge. (All tools & plants provided by Contractor)",{"$f":"G13*1.05/1129758.73","v":5.0569190157972933E-2},"Nos",{"$f":"'[1]calculation sheet '!F56","v":70},777.29229999999995,{"$f":"E13*F13","v":54410.460999999996},{"$f":"ROUND(I13/E13,4)","v":0},0]
[6,"Trimming of trees under around of street light poles and other area and disposal of waste material in suitable bin as per instruction of Engineer-in-charge. (All tools & plants provided by Contractor)",{"$f":"G14*1.05/1129758.73","v":2.1644675407819156E-2},"Nos",{"$f":"'[1]calculation sheet '!F77","v":205},113.604,{"$f":"E14*F14","v":23288.82},0,0]
[7,"Cleaning of cable trench including opening the trench cover, removing all waste material  and dispose of waste material in suitable bin as per instruction of Engineer-in-charge. (All tools & plants provided by Contractor)",0.29467209332385513,"Mtr",{"$f":"'[1]calculation sheet '!F93","v":2946},107.6224,317055.59039999999,0,0]
[8,"Cleaning of oxidation pond and removing the vegetation and sludge (upto 300 mm depth) and disposal of waste material up to 500 m and stacking of sludge at appropriate place as per the instruction of Engineer-in-charge. (All tools & plants provided by Contractor)",4.4453661004239371E-2,"Sqm ",{"$f":"'[1]calculation sheet '!F101","v":2133},22.423999999999999,47830.392,0,0]
[9,"Cleaning of drain (Nallah) inside factory area and disposal of material with tractor trolley upto suitable location as per instruction of Engineer-in-charge",4.8441546453020116E-2,"Mtr",{"$f":"'[1]calculation sheet '!F123","v":2000},26.060600000000001,52121.200000000004,0,0]
[10,"Cutting of grass and unwanted vegetation using manual tools in and around shops and office area and disposal of material upto 50 m as per instruction of Engineer-in-charge",2.2126124221230848E-3,"Sqm ",{"$f":"'[1]calculation sheet '!F148","v":10396},0.22900000000000001,2380.6840000000002,0,0]
[11,"Cleaning of RCC roofs  and dispose of waste material in suitable bin as per instruction of  Engineer-in-charge. (All tools & plants provided by Contractor)",5.4263617861133951E-3,"Sqm ",{"$f":"'[1]calculation sheet '!F208","v":9960},0.58620000000000005,5838.5520000000006,0,0]
[12,"Cleaning of factory floor using saw dust (Wood dust) and disposal of oil soaked saw dust into the designated dustbin as per instruction of Engineer-in-charge",1.6104348492177619E-2,"Sqm ",{"$f":"'[1]calculation sheet '!F216","v":10170},1.7038,17327.646000000001,0,0]
[13,"Cleaning of gulley Chambers   and disposal of waste material in suitable bin as per instruction of  Engineer-in-charge. (All tools & plants provided by Contractor)",1.8382404754685982E-2,"Nos",{"$f":"'[1]calculation sheet '!F235","v":70},282.55349999999999,19778.744999999999,0,0]
[14,"Cleaning of Man holes (Up to 2.0 m depth) and disposal of waste material in suitable bin as per instruction of  Engineer-in-charge. (All tools & plants provided by Contractor)",2.5334016958647447E-2,"Nos",{"$f":"'[1]calculation sheet '!F249","v":65},419.36009999999999,27258.406500000001,0,0]
[15,"Cleaning of Man holes (Above 2.0 m  to 4.0 m depth) and disposal of waste material in suitable bin as per instruction of  Engineer-in-charge. (All tools & plants provided by Contractor)",2.572517576385535E-2,"Nos",{"$f":"'[1]calculation sheet '!F259","v":33},838.76599999999996,27679.277999999998,0,0]
[16,"Cleaning of Man holes (Above 4 m depth) and disposal of waste material in suitable bin as per instruction of  Engineer-in-charge. (All tools & plants provided by Contractor)",{"$f":"G24*1.05/1129758.73","v":1.0530537082019275E-2},"Nos",{"$f":"'[1]calculation sheet '!F266","v":10},1133.0444,11330.444,0,{"$f":"$I$26*C24","v":0}]
["Total (B)",null,{"$f":"SUM(C13:C24)","v":0.56349662360652886},null,null,null,{"$f":"SUM(G13:G24)","v":606300.21890000009},null,{"$f":"SUM(I13:I24)","v":0}]
["Grand Total C = (A+B)",null,{"$f":"C11+C25","v":0.99999999986280264}]
["In words ",null,{"$f":"rup(I26)","v":0}]
[]
["Note -GST extra as applicable"]
["1. Bidder has to quote in above unlocked cell (I-26) only. Item rate shall be calculated automatically. Calculated item rates upto four  decimal points may be adjusted w.r.t. gross total amount and it shall be the itemwise final rate for  execution of contract and all other purposes."]
["2. Quoted gross total amount should be considered only if quoted in this excel sheet and print out of this should only be considered for evaluation.  If Price is quoted in any other format other than the Excel Sheet enclosed to the NIT, the offer of the bidder will be rejected."]
[]
[]
[]
[null,null,null,null,"(Signature and Seal of Contractor)"]